[Event "46th GRE-chT Premier 2018"]
[Site "Rio Achaia"]
[Date "2018.07.11"]
[Round "2"]
[White "Serpetsidaki, Eva"]
[Black "Stratigi, Evangelia"]
[Result "0-1"]
[ECO "C42"]
[WhiteElo "1591"]
[BlackElo "1688"]
[Annotator "NA"]
[PlyCount "78"]
[EventDate "2018.07.10"]
[EventType "team-tourn"]
[EventCountry "GRE"]
[SourceTitle "playchess.com"]
[Source "ChessBase"]
[SourceQuality "1"]
[TimeControl "40/5400+30:1800+30"]

1. e4 {[%emt 0:00:00]} e5 {[%emt 0:00:00]} 2. Nf3 {[%emt 0:00:00]} Nf6 {[%emt 0:00:00]} 3. Nxe5 {[%emt 0:03:29]} d6 {[%emt 0:00:17]} 4. Nf3 {[%emt 0:00:07]} Nxe4 {[%emt 0:00:09]} 5. d4 {[%emt 0:00:26]} d5 {[%emt 0:00:51]} 6. Bd3 {[%emt 0:00:11]} Bg4 {[%emt 0:03:15]} 7. O-O {[%emt 0:00:31]} Be7 {[%emt 0:00:40]} 8. Re1 {[%emt 0:00:23]} Nf6 {[%emt 0:02:08]} 9. h3 {[%emt 0:02:08]} Bxf3 {[%emt 0:05:09]} 10. Qxf3 {[%emt 0:00:11]} O-O {[%emt 0:00:30]} 11. Bg5 {[%emt 0:03:12]} c6 {[%emt 0:04:08]} 12. Nd2 {[%emt 0:02:11]} Nbd7 {[%emt 0:01:41]} 13. Qg3 {[%emt 0:00:44]} Re8 {[%emt 0:05:17]} 14. Re3 {[%emt 0:06:43]} Nh5 {[%emt 0:29:20]} 15. Bxe7 {[%emt 0:00:26]} Nxg3 {[%emt 0:09:22]} 16. Bxd8 {[%emt 0:00:15]} Rxe3 {[%emt 0:01:03]} 17. fxe3 {[%emt 0:00:27]} Rxd8 {[%emt 0:00:21]} 18. e4 {[%emt 0:01:16]} dxe4 {[%emt 0:01:13]} 19. Nxe4 {[%emt 0:00:07]} Nxe4 {[%emt 0:00:36]} 20. Bxe4 {[%emt 0:00:04]} Nf6 {[%emt 0:00:20]} 21. Bd3 {[%emt 0:00:05]} Rxd4 {[%emt 0:00:45]} 22. Re1 {[%emt 0:00:07]} Kf8 {[%emt 0:00:51]} 23. Kf2 {[%emt 0:00:09]} Rb4 {[%emt 0:04:32]} 24. b3 {[%emt 0:00:51]} Rd4 {[%emt 0:00:20]} 25. Ke3 {[%emt 0:02:01]} Rd6 {[%emt 0:00:56]} 26. Kf3 {[%emt 0:00:18]} h6 {[%emt 0:02:40]} 27. a3 {[%emt 0:05:45]} Re6 {[%emt 0:02:54]} 28. Rd1 {[%emt 0:05:07]} Nd5 {[%emt 0:04:08]} 29. Bc4 {[%emt 0:00:51]} Re5 {[%emt 0:06:26]} 30. Rd4 {[%emt 0:02:49]} Ke7 {[%emt 0:00:54]} 31. Rg4 {[%emt 0:00:47]} g5 {[%emt 0:03:11]} 32. h4 {[%emt 0:01:23]} Ne3 {[%emt 0:01:21]} 33. Rd4 {[%emt 0:01:35]} Nxc2 {[%emt 0:01:27]} 34. Rd2 {[%emt 0:00:10]} Nxa3 {[%emt 0:01:02]} 35. hxg5 {[%emt 0:00:06]} Nxc4 {[%emt 0:00:49]} 36. bxc4 {[%emt 0:00:11]} hxg5 {[%emt 0:00:08]} 37. Ra2 {[%emt 0:00:13]} a6 {[%emt 0:00:44]} 38. Rb2 {[%emt 0:00:06]} b5 {[%emt 0:00:14]} 39. cxb5 {[%emt 0:00:13]} axb5 {[%emt 0:00:28]} 0-1

[Event "46th GRE-chT Premier 2018"]
[Site "Rio Achaia"]
[Date "2018.07.11"]
[Round "2"]
[White "Moshou, Alexia"]
[Black "Anthopoulou, Ioanna"]
[Result "1-0"]
[ECO "C44"]
[WhiteElo "1582"]
[BlackElo "1359"]
[Annotator "NA"]
[PlyCount "69"]
[EventDate "2018.07.10"]
[EventType "team-tourn"]
[EventCountry "GRE"]
[SourceTitle "playchess.com"]
[Source "ChessBase"]
[SourceQuality "1"]
[TimeControl "40/5400+30:1800+30"]

1. e4 {[%emt 0:01:35]} e5 {[%emt 0:00:00]} 2. Nf3 {[%emt 0:00:30]} Nc6 {[%emt 0:00:18]} 3. d4 {[%emt 0:00:14]} exd4 {[%emt 0:02:54]} 4. Bc4 {[%emt 0:00:13]} h6 {[%emt 0:01:37]} 5. Nxd4 {[%emt 0:00:47]} Bc5 {[%emt 0:02:20]} 6. Nxc6 {[%emt 0:01:32]} bxc6 {[%emt 0:00:17]} 7. Bxf7+ {[%emt 0:00:17]} Kxf7 {[%emt 0:03:36]} 8. Qh5+ {[%emt 0:00:08]} Kf8 {[%emt 0:06:32]} 9. Qxc5+ {[%emt 0:00:07]} Qe7 {[%emt 0:00:56]} 10. Qxe7+ {[%emt 0:00:19]} Kxe7 {[%emt 0:00:10]} 11. Be3 {[%emt 0:00:51]} Nf6 {[%emt 0:02:50]} 12. f3 {[%emt 0:00:13]} Re8 {[%emt 0:00:41]} 13. Nc3 {[%emt 0:01:52]} Kf7 {[%emt 0:15:52]} 14. O-O {[%emt 0:02:11]} d5 {[%emt 0:06:09]} 15. Bd4 {[%emt 0:01:06]} Rb8 {[%emt 0:04:38]} 16. b3 {[%emt 0:01:26]} a6 {[%emt 0:01:41]} 17. Bxf6 {[%emt 0:00:38]} gxf6 {[%emt 0:04:44]} 18. exd5 {[%emt 0:00:06]} cxd5 {[%emt 0:00:36]} 19. Nxd5 {[%emt 0:00:09]} Re2 {[%emt 0:00:42]} 20. Rf2 {[%emt 0:00:24]} Rxf2 {[%emt 0:05:20]} 21. Kxf2 {[%emt 0:00:13]} c6 {[%emt 0:00:31]} 22. Ne3 {[%emt 0:00:28]} Be6 {[%emt 0:00:32]} 23. Rd1 {[%emt 0:00:26]} Ke7 {[%emt 0:02:39]} 24. c4 {[%emt 0:00:11]} a5 {[%emt 0:06:43]} 25. Nc2 {[%emt 0:00:37]} c5 {[%emt 0:01:00]} 26. Ne3 {[%emt 0:01:34]} Rd8 {[%emt 0:09:53]} 27. Rxd8 {[%emt 0:00:30]} Kxd8 {[%emt 0:00:06]} 28. Nd5 {[%emt 0:01:08]} f5 {[%emt 0:00:13]} 29. Ke3 {[%emt 0:00:40]} Kd7 {[%emt 0:00:26]} 30. Kf4 {[%emt 0:01:43]} Kd6 {[%emt 0:00:31]} 31. Ne3 {[%emt 0:00:23]} Ke7 {[%emt 0:01:26]} 32. Nxf5+ {[%emt 0:00:12]} Bxf5 {[%emt 0:00:07]} 33. Kxf5 {[%emt 0:00:04]} Kf7 {[%emt 0:00:09]} 34. Ke5 {[%emt 0:00:07]} Ke7 {[%emt 0:00:15]} 35. Kd5 {[%emt 0:00:04]} 1-0

[Event "46th GRE-chT Premier 2018"]
[Site "Rio Achaia"]
[Date "2018.07.11"]
[Round "2"]
[White "Tzagarakis, Panagiotis"]
[Black "Ergazakis, Ioannis"]
[Result "0-1"]
[ECO "B94"]
[WhiteElo "1573"]
[BlackElo "2228"]
[Annotator "NA"]
[PlyCount "84"]
[EventDate "2018.07.10"]
[EventType "team-tourn"]
[EventCountry "GRE"]
[SourceTitle "playchess.com"]
[Source "ChessBase"]
[SourceQuality "1"]
[TimeControl "40/5400+30:1800+30"]

1. e4 {[%emt 0:00:00]} c5 {[%emt 0:00:00]} 2. Nf3 {[%emt 0:00:00]} d6 {[%emt 0:00:00]} 3. d4 {[%emt 0:00:00]} cxd4 {[%emt 0:00:00]} 4. Nxd4 {[%emt 0:00:00]} Nf6 {[%emt 0:00:00]} 5. Nc3 {[%emt 0:00:00]} a6 {[%emt 0:00:02]} 6. Bg5 {[%emt 0:00:00]} Nbd7 {[%emt 0:00:03]} 7. a4 $11 {[%emt 0:00:00] LiveBook: 26 Games} e6 {[%emt 0:02:08]} 8. a5 {[%emt 0:00:28]} Be7 {[%emt 0:00:35]} 9. Be3 {[%emt 0:05:48]} Qc7 {[%emt 0:00:16]} 10. Be2 {[%emt 0:06:26]} Ne5 {[%emt 0:00:33]} 11. Nb3 {[%emt 0:12:12]} Bd7 {[%emt 0:04:11]} 12. Bb6 {[%emt 0:02:10]} Qc8 {[%emt 0:00:25]} 13. Qd4 {[%emt 0:02:41]} Bc6 {[%emt 0:02:06]} 14. Nd2 {[%emt 0:03:15]} O-O {[%emt 0:00:59]} 15. O-O {[%emt 0:00:14]} Ned7 {[%emt 0:02:24]} 16. Nc4 {[%emt 0:03:46]} d5 {[%emt 0:01:52]} 17. exd5 {[%emt 0:03:01]} Nxd5 {[%emt 0:01:02]} 18. Ne4 {[%emt 0:03:27]} N5xb6 {[%emt 0:01:49]} 19. axb6 {[%emt 0:02:48]} Bd5 {[%emt 0:02:04]} 20. Ra5 {[%emt 0:09:07]} Qc6 {[%emt 0:01:10]} 21. Bd3 {[%emt 0:07:10]} Rac8 {[%emt 0:01:32]} 22. b3 {[%emt 0:04:38]} Rfd8 {[%emt 0:01:09]} 23. Rb1 {[%emt 0:04:24]} f5 {[%emt 0:02:10]} 24. Ned2 {[%emt 0:04:59]} Bc5 {[%emt 0:01:42]} 25. Qh4 {[%emt 0:00:51]} Nxb6 {[%emt 0:02:41]} 26. Ne5 {[%emt 0:03:27]} Qd6 {[%emt 0:00:51]} 27. Ndf3 {[%emt 0:00:49]} Nd7 {[%emt 0:00:52]} 28. Nc4 {[%emt 0:04:53]} Qc7 {[%emt 0:01:30]} 29. Raa1 {[%emt 0:02:41]} Nf8 {[%emt 0:00:34]} 30. Nce5 {[%emt 0:01:16]} Bd6 {[%emt 0:00:27]} 31. Re1 {[%emt 0:00:29]} Be7 {[%emt 0:00:50]} 32. Qh3 {[%emt 0:02:41]} Bf6 {[%emt 0:00:15]} 33. Rad1 {[%emt 0:01:40]} b5 {[%emt 0:04:02]} 34. Rd2 {[%emt 0:01:53]} Bxf3 {[%emt 0:00:18]} 35. Nxf3 {[%emt 0:01:28]} Bc3 {[%emt 0:00:29]} 36. Rde2 {[%emt 0:00:38]} Bxe1 {[%emt 0:00:10]} 37. Rxe1 {[%emt 0:00:02]} Qc3 {[%emt 0:00:23]} 38. Kf1 {[%emt 0:01:07]} Rxd3 {[%emt 0:01:13]} 39. cxd3 {[%emt 0:00:09]} Qxd3+ {[%emt 0:00:03]} 40. Kg1 {[%emt 0:00:00]} Qxb3 {[%emt 0:00:00]} 41. Qh5 {[%emt 0:02:10]} Qb2 {[%emt 0:00:58]} 42. Ne5 {[%emt 0:01:02]} Qxe5 {[%emt 0:00:16]} 0-1

[Event "46th GRE-chT Premier 2018"]
[Site "Rio Achaia"]
[Date "2018.07.11"]
[Round "2"]
[White "Laspas, Antonios"]
[Black "Tzachristas, Georgios"]
[Result "0-1"]
[ECO "A50"]
[WhiteElo "1566"]
[BlackElo "1191"]
[Annotator "NA"]
[PlyCount "66"]
[EventDate "2018.07.10"]
[EventType "team-tourn"]
[EventCountry "GRE"]
[SourceTitle "playchess.com"]
[Source "ChessBase"]
[SourceQuality "1"]
[TimeControl "40/5400+30:1800+30"]

1. d4 {[%emt 0:05:51]} Nf6 {[%emt 0:00:00]} 2. c4 {[%emt 0:00:08]} Nc6 {[%emt 0:00:00]} 3. Nc3 {[%emt 0:00:11]} e5 {[%emt 0:00:00]} 4. d5 {[%emt 0:00:18]} Ne7 {[%emt 0:00:10]} 5. e4 {[%emt 0:00:14]} Ng6 {[%emt 0:00:16]} 6. Bd3 {[%emt 0:00:29]} Bc5 {[%emt 0:00:11]} 7. h3 {[%emt 0:01:11]} d6 {[%emt 0:00:27]} 8. Nf3 {[%emt 0:00:10]} O-O 9. O-O Qe7 {[%emt 0:05:54]} 10. Na4 {[%emt 0:02:22]} Bb6 {[%emt 0:01:14]} 11. Nxb6 {[%emt 0:01:15]} axb6 {[%emt 0:00:09]} 12. b4 {[%emt 0:01:27]} h6 {[%emt 0:02:08]} 13. Be3 {[%emt 0:00:47]} Nh5 {[%emt 0:03:23]} 14. Qd2 {[%emt 0:03:04]} f5 {[%emt 0:02:07]} 15. exf5 {[%emt 0:06:09]} Bxf5 {[%emt 0:07:11]} 16. Bxf5 {[%emt 0:01:41]} Rxf5 {[%emt 0:00:11]} 17. Qc2 {[%emt 0:00:31]} Rf6 {[%emt 0:23:39]} 18. Nh2 {[%emt 0:03:27]} Ngf4 {[%emt 0:02:19]} 19. Ng4 {[%emt 0:05:09]} Rf7 {[%emt 0:04:17]} 20. Bxf4 {[%emt 0:02:29]} Nxf4 {[%emt 0:00:34]} 21. f3 {[%emt 0:03:54]} Qg5 {[%emt 0:03:21]} 22. Kh1 {[%emt 0:06:36]} h5 {[%emt 0:05:13]} 23. Nh2 {[%emt 0:00:34]} Rf6 {[%emt 0:02:28]} 24. Rf2 {[%emt 0:03:06]} Rg6 {[%emt 0:03:58]} 25. Rd1 {[%emt 0:05:04]} Rf8 {[%emt 0:14:02]} 26. Qb1 {[%emt 0:08:41]} Qh4 {[%emt 0:06:50]} 27. Rdd2 {[%emt 0:01:48]} Rff6 {[%emt 0:01:54]} 28. Qf1 {[%emt 0:02:57]} Rg3 {[%emt 0:01:28]} 29. Qd1 {[%emt 0:04:32]} Rfg6 {[%emt 0:00:49]} 30. Nf1 {[%emt 0:02:46]} Nxh3 {[%emt 0:01:19]} 31. gxh3 {[%emt 0:00:57]} Rg1+ {[%emt 0:00:13]} 32. Kh2 {[%emt 0:00:18]} Qf4+ {[%emt 0:00:02]} 33. Ng3 {[%emt 0:00:57]} Qxg3# {[%emt 0:00:04]} 0-1

[Event "46th GRE-chT Premier 2018"]
[Site "Rio Achaia"]
[Date "2018.07.11"]
[Round "2"]
[White "Kollias, Ioannis K"]
[Black "Gkikas, Ioannis"]
[Result "1/2-1/2"]
[ECO "A45"]
[WhiteElo "1546"]
[BlackElo "1553"]
[Annotator "NA"]
[PlyCount "103"]
[EventDate "2018.07.10"]
[EventType "team-tourn"]
[EventCountry "GRE"]
[SourceTitle "playchess.com"]
[Source "ChessBase"]
[SourceQuality "1"]
[TimeControl "40/5400+30:1800+30"]

1. d4 {[%emt 0:00:00]} Nf6 {[%emt 0:00:00]} 2. Bg5 {[%emt 0:00:00]} Ne4 {[%emt 0:00:17]} 3. Bf4 {[%emt 0:00:00]} d5 {[%emt 0:01:19]} 4. e3 {[%emt 0:00:00]} c5 {[%emt 0:00:16]} 5. Bd3 {[%emt 0:01:29]} Nf6 {[%emt 0:01:43]} 6. c3 {[%emt 0:03:48]} Qb6 {[%emt 0:01:15]} 7. Qc1 {[%emt 0:04:14]} Bg4 {[%emt 0:02:34]} 8. Nd2 {[%emt 0:02:26]} Nc6 {[%emt 0:02:28]} 9. Ngf3 {[%emt 0:01:17]} e6 {[%emt 0:00:36]} 10. O-O {[%emt 0:04:50]} Be7 {[%emt 0:00:18]} 11. Ne5 {[%emt 0:07:12]} Bh5 {[%emt 0:00:34]} 12. Ndf3 {[%emt 0:02:34]} Nxe5 {[%emt 0:00:45]} 13. Nxe5 {[%emt 0:00:23]} O-O {[%emt 0:00:18]} 14. Bg5 {[%emt 0:05:00]} Qc7 {[%emt 0:14:48]} 15. Qb1 {[%emt 0:03:17]} Bd6 {[%emt 0:08:11]} 16. Bf4 {[%emt 0:03:51]} Kh8 {[%emt 0:13:24]} 17. h3 {[%emt 0:08:16]} Nd7 {[%emt 0:02:36]} 18. Nxd7 {[%emt 0:03:02]} Qxd7 {[%emt 0:00:08]} 19. Bxd6 {[%emt 0:00:39]} Qxd6 {[%emt 0:00:12]} 20. dxc5 {[%emt 0:00:24]} Qxc5 {[%emt 0:00:24]} 21. Qc2 {[%emt 0:01:46]} Bg6 {[%emt 0:00:34]} 22. Bxg6 {[%emt 0:00:29]} hxg6 {[%emt 0:00:16]} 23. Rfd1 {[%emt 0:02:02]} b5 {[%emt 0:04:05]} 24. e4 {[%emt 0:04:30]} Rad8 {[%emt 0:05:07]} 25. exd5 {[%emt 0:05:19]} Rxd5 {[%emt 0:00:22]} 26. Qe4 {[%emt 0:00:39]} Re5 {[%emt 0:02:58]} 27. Qh4+ {[%emt 0:08:19]} Kg8 {[%emt 0:02:55]} 28. Rd2 {[%emt 0:05:35]} Rh5 {[%emt 0:01:25]} 29. Qd4 {[%emt 0:00:53]} Rc8 {[%emt 0:08:08]} 30. Qxc5 {[%emt 0:01:49]} Rhxc5 {[%emt 0:00:18]} 31. Rad1 {[%emt 0:00:43]} Kf8 {[%emt 0:01:43]} 32. Rd7 {[%emt 0:02:23]} R8c7 {[%emt 0:02:02]} 33. Kf1 {[%emt 0:01:05]} Ke8 {[%emt 0:00:31]} 34. Rxc7 {[%emt 0:01:25]} Rxc7 {[%emt 0:00:08]} 35. Ke2 {[%emt 0:00:10]} Ke7 {[%emt 0:04:18]} 36. Ke3 {[%emt 0:00:49]} Rc5 {[%emt 0:02:37]} 37. Rd4 {[%emt 0:02:24]} a5 {[%emt 0:02:17]} 38. Kd3 {[%emt 0:07:14]} e5 {[%emt 0:02:32]} 39. b4 {[%emt 0:02:41]} exd4 {[%emt 0:02:05]} 40. bxc5 {[%emt 0:00:00]} dxc3 {[%emt 0:00:00]} 41. Kxc3 {[%emt 0:00:11]} Kd7 {[%emt 0:00:15]} 42. Kd4 {[%emt 0:01:31]} Kc6 {[%emt 0:01:32]} 43. h4 {[%emt 0:01:21]} f6 {[%emt 0:03:19]} 44. g4 {[%emt 0:11:01]} f5 {[%emt 0:06:50]} 45. g5 {[%emt 0:02:18]} f4 {[%emt 0:00:53]} 46. f3 {[%emt 0:00:13]} Kc7 {[%emt 0:00:43]} 47. Kd5 {[%emt 0:04:12]} b4 {[%emt 0:06:22]} 48. Kd4 {[%emt 0:02:25]} Kd7 {[%emt 0:02:05]} 49. Kd5 {[%emt 0:00:55]} Kc7 {[%emt 0:00:31]} 50. Kd4 {[%emt 0:00:12]} Kd7 {[%emt 0:00:29]} 51. Kd5 {[%emt 0:00:33]} Kc7 {[%emt 0:00:34]} 52. Kd4 {[%emt 0:01:29]} 1/2-1/2

[Event "46th GRE-chT Premier 2018"]
[Site "Rio Achaia"]
[Date "2018.07.11"]
[Round "2"]
[White "Stoimenidis, Dimitrios"]
[Black "Fragkos, Vasileios"]
[Result "1/2-1/2"]
[ECO "B90"]
[WhiteElo "1527"]
[BlackElo "1774"]
[Annotator "NA"]
[PlyCount "97"]
[EventDate "2018.07.10"]
[EventType "team-tourn"]
[EventCountry "GRE"]
[SourceTitle "playchess.com"]
[Source "ChessBase"]
[SourceQuality "1"]
[TimeControl "40/5400+30:1800+30"]

1. e4 {[%emt 0:00:00]} c5 {[%emt 0:00:00]} 2. Nf3 {[%emt 0:00:00]} d6 {[%emt 0:00:19]} 3. d4 {[%emt 0:00:00]} cxd4 {[%emt 0:00:06]} 4. Nxd4 {[%emt 0:00:00]} Nf6 {[%emt 0:00:16]} 5. Nc3 {[%emt 0:00:04]} a6 {[%emt 0:00:17]} 6. a4 {[%emt 0:00:29]} g6 {[%emt 0:00:48]} 7. Be2 {[%emt 0:00:55]} Bg7 {[%emt 0:00:07]} 8. Be3 {[%emt 0:01:04]} O-O {[%emt 0:00:20]} 9. O-O {[%emt 0:00:28]} Nbd7 {[%emt 0:00:49]} 10. f4 {[%emt 0:08:33]} e5 {[%emt 0:09:24]} 11. Nb3 {[%emt 0:03:06]} Qc7 {[%emt 0:08:00]} 12. a5 {[%emt 0:12:52]} b5 {[%emt 0:12:30]} 13. axb6 {[%emt 0:09:14]} Nxb6 {[%emt 0:00:07]} 14. fxe5 {[%emt 0:13:00]} dxe5 {[%emt 0:00:07]} 15. Bd3 {[%emt 0:13:01]} Re8 {[%emt 0:27:26]} 16. Na5 {[%emt 0:10:05]} Ng4 {[%emt 0:03:23]} 17. Qf3 {[%emt 0:03:45]} Nxe3 {[%emt 0:00:17]} 18. Qxe3 {[%emt 0:00:03]} Bf8 {[%emt 0:01:26]} 19. Kh1 {[%emt 0:02:32]} Bb4 {[%emt 0:02:03]} 20. Nb3 {[%emt 0:02:13]} Bb7 {[%emt 0:07:53]} 21. Qf2 {[%emt 0:04:21]} Rf8 {[%emt 0:02:12]} 22. Na2 {[%emt 0:04:11]} Be7 {[%emt 0:00:58]} 23. Qe2 {[%emt 0:01:11]} Na4 {[%emt 0:03:33]} 24. Rab1 {[%emt 0:01:11]} Nc5 {[%emt 0:04:18]} 25. Nxc5 {[%emt 0:00:23]} Bxc5 {[%emt 0:00:07]} 26. Nc3 {[%emt 0:00:53]} Kg7 {[%emt 0:03:44]} 27. Ra1 {[%emt 0:00:35]} a5 {[%emt 0:01:05]} 28. Rab1 {[%emt 0:06:05]} a4 {[%emt 0:00:58]} 29. Nb5 {[%emt 0:01:01]} Qe7 {[%emt 0:01:15]} 30. Ra1 {[%emt 0:00:48]} h5 {[%emt 0:03:28]} 31. Na3 {[%emt 0:00:38]} Bc6 {[%emt 0:01:02]} 32. Nc4 {[%emt 0:00:52]} a3 {[%emt 0:00:24]} 33. Nxa3 {[%emt 0:01:09]} Bxa3 {[%emt 0:00:06]} 34. Rxa3 {[%emt 0:00:07]} Rxa3 {[%emt 0:00:08]} 35. bxa3 {[%emt 0:00:03]} Qxa3 {[%emt 0:00:08]} 36. Qf2 {[%emt 0:01:05]} Qe7 {[%emt 0:00:28]} 37. Qg3 {[%emt 0:01:42]} h4 {[%emt 0:00:43]} 38. Qe3 {[%emt 0:00:34]} Rh8 {[%emt 0:01:24]} 39. h3 {[%emt 0:00:38]} Rh5 {[%emt 0:00:39]} 40. Qf2 {[%emt 0:00:00]} Rh8 {[%emt 0:00:00]} 41. Qe3 {[%emt 0:03:18]} Ra8 {[%emt 0:04:43]} 42. Bc4 {[%emt 0:06:48]} f6 {[%emt 0:03:31]} 43. Bd3 {[%emt 0:01:53]} Ra3 {[%emt 0:03:39]} 44. Qf2 {[%emt 0:06:18]} g5 {[%emt 0:00:18]} 45. Qf3 {[%emt 0:02:12]} Ba4 {[%emt 0:00:30]} 46. Qe2 {[%emt 0:01:31]} Bc6 {[%emt 0:02:46]} 47. Qf3 {[%emt 0:00:27]} Ba4 {[%emt 0:01:55]} 48. Qe2 {[%emt 0:00:13]} Bc6 {[%emt 0:00:05]} 49. Qf3 {[%emt 0:00:05]} 1/2-1/2

[Event "46th GRE-chT Premier 2018"]
[Site "Rio Achaia"]
[Date "2018.07.11"]
[Round "2"]
[White "Skiadopoulou, Afroditi-Lelouda"]
[Black "Pasoglou, Nikoleta"]
[Result "0-1"]
[ECO "B73"]
[WhiteElo "1491"]
[BlackElo "1354"]
[Annotator "NA"]
[PlyCount "92"]
[EventDate "2018.07.10"]
[EventType "team-tourn"]
[EventCountry "GRE"]
[SourceTitle "playchess.com"]
[Source "ChessBase"]
[SourceQuality "1"]
[TimeControl "40/5400+30:1800+30"]

1. e4 {[%emt 0:00:00]} c5 {[%emt 0:00:00]} 2. Nc3 {[%emt 0:00:00]} Nc6 {[%emt 0:00:03]} 3. Nf3 {[%emt 0:00:25]} g6 {[%emt 0:00:32]} 4. d4 {[%emt 0:00:23]} cxd4 {[%emt 0:00:56]} 5. Nxd4 {[%emt 0:00:07]} Bg7 {[%emt 0:00:29]} 6. Be3 {[%emt 0:01:03]} d6 {[%emt 0:01:31]} 7. Be2 {[%emt 0:02:24]} Nf6 {[%emt 0:02:48]} 8. O-O {[%emt 0:01:50]} O-O {[%emt 0:00:54]} 9. h3 {[%emt 0:02:07]} Nxd4 {[%emt 0:10:22]} 10. Bxd4 {[%emt 0:00:15]} b6 {[%emt 0:01:32]} 11. e5 {[%emt 0:14:47]} dxe5 {[%emt 0:07:35]} 12. Bxe5 {[%emt 0:00:09]} Bb7 {[%emt 0:01:49]} 13. Qd3 {[%emt 0:06:47]} Qxd3 {[%emt 0:10:28]} 14. Bxd3 {[%emt 0:00:09]} Rfd8 {[%emt 0:07:39]} 15. Rfe1 {[%emt 0:08:30]} e6 {[%emt 0:01:01]} 16. Rad1 {[%emt 0:09:45]} Nd5 {[%emt 0:09:51]} 17. Nxd5 {[%emt 0:07:17]} Bxd5 {[%emt 0:00:58]} 18. Bxg7 {[%emt 0:01:10]} Kxg7 {[%emt 0:00:07]} 19. c4 {[%emt 0:00:00]} Bb7 {[%emt 0:00:58]} 20. Bb1 {[%emt 0:07:08]} Rac8 {[%emt 0:08:47]} 21. b3 {[%emt 0:00:18]} Kf6 {[%emt 0:03:44]} 22. f3 {[%emt 0:00:28]} e5 {[%emt 0:11:30]} 23. Kf2 {[%emt 0:01:33]} Ke6 {[%emt 0:10:18]} 24. Rc1 {[%emt 0:11:25]} f5 {[%emt 0:03:53]} 25. Re2 {[%emt 0:10:39]} Kf6 {[%emt 0:01:04]} 26. Rce1 {[%emt 0:12:09]} Re8 {[%emt 0:00:09]} 27. g4 {[%emt 0:01:43]} h6 {[%emt 0:03:23]} 28. Rd1 {[%emt 0:00:56]} Red8 {[%emt 0:01:03]} 29. gxf5 {[%emt 0:00:26]} Rxd1 {[%emt 0:00:13]} 30. Bc2 {[%emt 0:00:16]} Rd6 {[%emt 0:00:22]} 31. fxg6 {[%emt 0:00:12]} Re8 {[%emt 0:00:38]} 32. h4 {[%emt 0:00:23]} Kg7 {[%emt 0:00:22]} 33. h5 {[%emt 0:00:22]} Rf6 {[%emt 0:00:24]} 34. Re3 {[%emt 0:00:22]} e4 {[%emt 0:00:24]} 35. Bd1 {[%emt 0:00:30]} Rf5 {[%emt 0:00:45]} 36. Kg3 {[%emt 0:00:58]} Rxh5 {[%emt 0:00:32]} 37. f4 {[%emt 0:00:44]} Rf5 {[%emt 0:00:25]} 38. Bg4 {[%emt 0:00:15]} Rf6 {[%emt 0:00:36]} 39. f5 {[%emt 0:00:26]} Rd6 {[%emt 0:00:13]} 40. Kf4 {[%emt 0:00:00]} Rd3 {[%emt 0:00:00]} 41. Re1 {[%emt 0:00:55]} e3 {[%emt 0:02:03]} 42. b4 {[%emt 0:04:27]} Re4+ {[%emt 0:02:59]} 43. Kg3 {[%emt 0:01:36]} e2+ {[%emt 0:00:47]} 44. Kf2 {[%emt 0:00:16]} Rxg4 {[%emt 0:00:11]} 45. Rxe2 {[%emt 0:00:17]} Rg2+ {[%emt 0:00:10]} 46. Ke1 {[%emt 0:00:46]} Rxe2+ {[%emt 0:00:15]} 0-1

[Event "46th GRE-chT Premier 2018"]
[Site "Rio Achaia"]
[Date "2018.07.11"]
[Round "2"]
[White "Klampatseas, Christos"]
[Black "Tsiros, Fragkiskos Vlasios"]
[Result "0-1"]
[ECO "A41"]
[WhiteElo "1440"]
[BlackElo "2181"]
[Annotator "NA"]
[PlyCount "74"]
[EventDate "2018.07.10"]
[EventType "team-tourn"]
[EventCountry "GRE"]
[SourceTitle "playchess.com"]
[Source "ChessBase"]
[SourceQuality "1"]
[TimeControl "40/5400+30:1800+30"]

1. d4 {[%emt 0:00:00]} d6 {[%emt 0:00:00]} 2. c4 {[%emt 0:00:00]} e5 {[%emt 0:00:47]} 3. d5 {[%emt 0:01:45]} f5 {[%emt 0:00:11]} 4. Nc3 {[%emt 0:01:17]} Nf6 {[%emt 0:00:42]} 5. Bg5 {[%emt 0:01:50]} Be7 {[%emt 0:00:39]} 6. Bxf6 {[%emt 0:01:33]} Bxf6 {[%emt 0:00:06]} 7. e4 {[%emt 0:02:22]} fxe4 {[%emt 0:04:01]} 8. Nxe4 {[%emt 0:00:29]} O-O {[%emt 0:00:56]} 9. Bd3 {[%emt 0:03:45]} c6 {[%emt 0:05:13]} 10. Ne2 {[%emt 0:08:45]} cxd5 {[%emt 0:05:51]} 11. cxd5 {[%emt 0:01:48]} Qa5+ {[%emt 0:00:26]} 12. N2c3 {[%emt 0:01:15]} Be7 {[%emt 0:00:52]} 13. O-O {[%emt 0:05:12]} Bf5 {[%emt 0:00:46]} 14. Qb3 {[%emt 0:09:39]} Nd7 {[%emt 0:03:24]} 15. Nb5 {[%emt 0:08:40]} Bxe4 {[%emt 0:02:36]} 16. Bxe4 {[%emt 0:00:54]} Nc5 {[%emt 0:00:04]} 17. Bxh7+ {[%emt 0:16:05]} Kxh7 {[%emt 0:00:29]} 18. Qh3+ {[%emt 0:00:31]} Kg8 {[%emt 0:00:36]} 19. Nc3 {[%emt 0:01:25]} Qb4 {[%emt 0:01:53]} 20. Rae1 {[%emt 0:03:08]} Rf7 {[%emt 0:02:37]} 21. Qh5 {[%emt 0:04:51]} Raf8 {[%emt 0:05:42]} 22. Re3 {[%emt 0:03:53]} Rf5 {[%emt 0:01:13]} 23. Qg6 {[%emt 0:03:08]} Qh4 {[%emt 0:01:22]} 24. Rg3 {[%emt 0:03:36]} Rg5 {[%emt 0:01:14]} 25. Qc2 {[%emt 0:03:06]} Rxg3 {[%emt 0:00:33]} 26. hxg3 {[%emt 0:00:56]} Qh7 {[%emt 0:00:22]} 27. Qe2 {[%emt 0:01:19]} Qd3 {[%emt 0:04:31]} 28. Qg4 {[%emt 0:02:57]} Qf5 {[%emt 0:00:14]} 29. Qe2 {[%emt 0:01:42]} a6 {[%emt 0:02:14]} 30. Rd1 {[%emt 0:05:40]} b5 {[%emt 0:04:09]} 31. b4 {[%emt 0:01:18]} Nd7 {[%emt 0:00:05]} 32. Rd3 {[%emt 0:01:12]} Nf6 {[%emt 0:00:38]} 33. Rf3 {[%emt 0:00:58]} Qg5 {[%emt 0:00:37]} 34. Qc2 {[%emt 0:00:58]} Rc8 {[%emt 0:00:34]} 35. Qb2 {[%emt 0:00:49]} Rc4 {[%emt 0:02:15]} 36. a4 {[%emt 0:00:40]} bxa4 {[%emt 0:00:33]} 37. Nxa4 {[%emt 0:00:23]} Rc1+ {[%emt 0:00:09]} 0-1